bitfinex-derivatives/quotes_SOLF0:USTF0_20250325
["timestamp","ask_amount","ask_price","bid_price","bid_amount"]
[1742934308608,226.54,145.68,145.65,6.8641]
[1742934308810,226.54,145.68,145.59,25.6]
[1742934309010,233.4031,145.68,145.59,25.6]
[1742934309210,233.4031,145.68,145.65,6.8639]
[1742934309807,226.58934596,145.68,145.65,0.05121034]
[1742934310406,6.8637,145.66,145.65,0.05121034]
[1742934310806,32.4637,145.66,145.65,0.05121034]
[1742934319121,6.8662,145.61,145.59,25.6]
[1742934319319,6.8662,145.61,145.56,25.6]
[1742934319518,25.6,145.66,145.56,25.6]
[1742934320217,6.8661,145.62,145.56,25.6]
[1742934320420,6.91679342,145.62,145.6,0.04721326]
[1742934320616,0.05069342,145.62,145.6,0.04721326]
[1742934321018,6.8661,145.61,145.6,0.04721326]
[1742934321222,0.05069342,145.62,145.6,0.04721326]
[1742934321623,6.91679342,145.62,145.6,0.04721326]
[1742934322314,6.8661,145.61,145.6,0.04721326]
[1742934324522,6.91659342,145.62,145.6,0.04721326]
[1742934325527,6.8661,145.61,145.6,0.04721326]
[1742934327424,0.05069342,145.62,145.52,383.6]
[1742934327425,6.8681,145.57,145.52,383.6]
[1742934327728,25.6,145.6,145.52,25.6]
[1742934328130,6.8683,145.57,145.54,6.8691]
[1742934328531,6.92098142,145.57,145.54,6.89064455]
[1742934328922,6.92098142,145.57,145.55,6.8689]
[1742934330230,6.92098142,145.57,145.54,0.02154455]
[1742934330231,6.8685,145.56,145.54,0.02154455]
[1742934330422,0.05268142,145.57,145.54,0.02154455]
[1742934331021,6.8687,145.56,145.54,0.02154455]
[1742934332128,0.05268142,145.57,145.54,0.02154455]
[1742934332129,6.8689,145.55,145.54,0.02154455]
[1742934334934,6.8687,145.56,145.54,0.02154455]
[1742934338130,6.8689,145.55,145.54,0.02154455]
[1742934344740,32.4487,145.56,145.54,0.02154455]
[1742934346843,6.8689,145.55,145.54,0.02154455]
[1742934352544,32.4487,145.56,145.54,0.02154455]
[1742934352943,25.58,145.56,145.54,0.02154455]
[1742934353344,6.8689,145.55,145.54,0.02154455]
[1742934358147,0.05268142,145.57,145.54,0.02154455]
[1742934358346,114.07392758,145.66,145.54,32.48154455]
[1742934358552,94.56090303,145.65,145.55,14.99737847]
[1742934358747,94.56090303,145.65,145.56,1.25947847]
[1742934359151,94.56090303,145.65,145.62,6.8653]
[1742934359450,94.56090303,145.65,145.6,25.58]
[1742934359657,94.61290503,145.65,145.62,0.0438291]
[1742934359848,0.052002,145.65,145.62,0.0438291]
[1742934360349,0.052002,145.65,145.64,6.8647]
[1742934360751,2e-06,145.65,145.64,32.4447]
[1742934362249,25.58,145.76,145.64,32.44]
[1742934362560,96.69563336,145.82,145.64,25.58]
[1742934362754,25.58,145.77,145.64,25.58]
[1742934362954,77.28009354,145.82,145.65,1.25496166]
[1742934363154,252.22,145.78,145.65,1.25496166]
[1742934363355,0.04520405,145.73,145.7,0.04641957]
[1742934363958,0.04520405,145.73,145.72,6.8609]
[1742934365557,226.56,145.84,145.7,0.04641957]
[1742934365756,25.56,145.83,145.69,25.56]
[1742934365956,25.56,145.83,145.75,6.8593]
[1742934366151,25.56,145.82,145.75,6.8593]
[1742934366457,25.56,145.82,145.65,13.7282]
[1742934366458,25.56,145.82,145.74,6.8598]
[1742934366660,0.04969653,145.8,145.77,0.0476204]
[1742934373064,25.54,145.79,145.77,0.0476204]
[1742934395281,25.54,145.79,145.7,25.56]
[1742934395484,25.54,145.79,145.65,358.0]
[1742934395686,25.54,145.79,145.66,25.52]
[1742934396586,0.04959876,145.74,145.71,0.05145404]
[1742934396884,25.56959876,145.74,145.71,0.05145404]
[1742934397284,6.8609,145.72,145.71,0.05145404]
[1742934398885,25.56959876,145.74,145.65,37.53072288]
[1742934399097,226.34,145.73,145.65,37.53072288]
[1742934399389,226.34,145.73,145.61,37.53072288]
[1742934399788,226.34,145.73,145.65,6.8639]
[1742934399985,0.0470478,145.68,145.66,0.05199979]
[1742934400186,32.4301478,145.68,145.66,0.05199979]
[1742934400491,32.43394341,145.68,145.66,0.05199979]
[1742934403583,6.8633,145.67,145.66,0.05199979]
[1742934403789,25.57084341,145.68,145.66,0.05199979]
[1742934404194,32.43404341,145.68,145.66,0.05199979]
[1742934404393,25.57084341,145.68,145.66,0.05199979]
[1742934404792,25.57084341,145.68,145.66,6.91549979]
[1742934412198,25.57084341,145.68,145.66,0.05199979]
[1742934412392,25.57084341,145.68,145.58,25.52]
[1742934412598,25.52,145.68,145.57,25.52]
[1742934412793,6.8648,145.64,145.61,6.8659]
[1742934413191,6.8648,145.64,145.57,25.52]
[1742934413398,32.3848,145.64,145.57,25.52]
[1742934413598,0.05231299,145.62,145.59,0.02035779]
[1742934413901,0.05231299,145.62,145.61,6.8661]
[1742934415400,0.05231299,145.62,145.59,0.02035779]
[1742934416003,6.91791299,145.62,145.59,6.88715779]
[1742934416607,6.91791299,145.62,145.6,6.8665]
[1742934417504,0.05231299,145.62,145.6,6.8665]
[1742934418004,25.52,145.69,145.59,0.02035779]
[1742934418204,25.52,145.69,145.6,25.52]
[1742934418401,6.8633,145.67,145.65,6.8639]
[1742934419105,6.90691981,145.67,145.65,6.91507115]
[1742934420206,0.04361981,145.67,145.65,6.91507115]
[1742934423203,0.04361981,145.67,145.66,6.8637]
[1742934423506,251.86,145.73,145.65,0.05117115]
[1742934423902,258.7206,145.73,145.7,6.8616]
[1742934424103,233.2006,145.73,145.7,6.8616]
[1742934424600,233.24838821,145.73,145.7,6.90944007]
[1742934424806,6.8609,145.72,145.7,6.90944007]
[1742934425107,226.38778821,145.73,145.7,6.90944007]
[1742934425410,0.04778821,145.73,145.7,0.04784007]
[1742934425708,0.04778821,145.73,145.72,6.8609]
[1742934426804,0.04778821,145.73,145.71,6.8612]
[1742934427002,0.04778821,145.73,145.7,0.04784007]
[1742934427907,0.04778821,145.73,145.71,6.8611]
[1742934428409,0.04778821,145.73,145.7,0.04784007]
[1742934428706,0.04778821,145.73,145.71,6.861]
[1742934429008,0.04778821,145.73,145.7,0.04784007]
[1742934429508,0.04778821,145.73,145.71,6.8614]
[1742934430207,0.04778821,145.73,145.72,6.8609]
[1742934439213,25.5,145.78,145.76,6.8587]
[1742934440011,32.3583,145.78,145.68,25.52]
[1742934440207,25.5,145.78,145.68,25.52]
[1742934440405,0.04326735,145.74,145.72,0.04393872]
[1742934440615,0.04326735,145.74,145.72,6.90453872]
[1742934440817,0.04326735,145.74,145.72,0.04393872]
[1742934442108,0.04326735,145.74,145.73,6.8604]
[1742934442617,0.04326735,145.74,145.72,6.90463872]
[1742934443015,0.04326735,145.74,145.72,0.04393872]
[1742934443818,0.04326735,145.74,145.72,6.90463872]
[1742934444024,0.04326735,145.74,145.72,0.04393872]
[1742934444522,32.3604,145.73,145.72,0.04393872]
[1742934445719,25.5,145.73,145.63,25.5]
[1742934446226,25.5,145.73,145.61,25.5]
[1742934446914,0.05002905,145.68,145.67,6.8633]
[1742934447123,25.5,145.69,145.67,6.8633]
[1742934447318,32.40734205,145.69,145.66,6.91093402]
[1742934447515,25.54474205,145.69,145.66,0.04743402]
[1742934448427,25.54474205,145.69,145.67,6.8633]
[1742934449023,25.54474205,145.69,145.68,6.8628]
[1742934452332,25.54474205,145.69,145.67,6.8631]
[1742934454531,25.54474205,145.69,145.68,6.8628]
[1742934455230,25.54474205,145.69,145.67,6.863]
[1742934459336,25.54474205,145.69,145.68,6.8628]
[1742934461838,25.54474205,145.69,145.66,0.04743402]
[1742934462432,25.54474205,145.69,145.67,6.8631]
[1742934465448,32.40704205,145.69,145.66,6.91103402]
[1742934466541,25.54474205,145.69,145.66,6.91103402]
[1742934467138,25.54474205,145.69,145.66,0.04743402]
[1742934467335,25.54474205,145.69,145.57,397.2153]
[1742934467535,25.5,145.69,145.57,13.7353]
[1742934467740,6.8642,145.65,145.62,6.8653]
[1742934467942,25.48,145.65,145.57,13.7353]
[1742934468543,0.04545296,145.62,145.6,0.04852122]
[1742934469440,0.04545296,145.62,145.61,6.8661]
[1742934469941,6.8633,145.67,145.61,25.48]
[1742934470239,25.48,145.69,145.61,25.48]
[1742934470443,6.8643,145.65,145.62,6.8654]
[1742934470840,25.48,145.69,145.61,25.48]
[1742934471040,0.04790169,145.65,145.63,6.8649]
[1742934471946,0.04790169,145.65,145.62,0.04687528]
[1742934472140,25.52790169,145.65,145.62,0.04687528]
[1742934472640,6.8652,145.63,145.62,0.04687528]
[1742934474444,25.52790169,145.65,145.55,25.48]
[1742934474741,25.48,145.65,145.58,6.8673]
[1742934475244,6.8659,145.62,145.58,6.8673]
[1742934475639,0.04986573,145.61,145.59,0.04783158]
[1742934476040,6.91616573,145.61,145.59,0.04783158]
[1742934476251,0.04986573,145.61,145.59,0.04783158]
[1742934476739,6.8666,145.6,145.59,0.04783158]
[1742934479447,25.52986573,145.61,145.59,0.04783158]
[1742934479848,25.52986573,145.61,145.59,6.91483158]
[1742934480244,25.52986573,145.61,145.59,0.04783158]
[1742934481547,32.39596573,145.61,145.59,0.04783158]
[1742934482150,25.52986573,145.61,145.59,0.04783158]
[1742934483144,32.39606573,145.61,145.59,0.04783158]
[1742934485050,25.52986573,145.61,145.59,6.91483158]
[1742934485552,25.52986573,145.61,145.6,6.8666]
[1742934486054,25.52986573,145.61,145.59,0.04783158]
[1742934486055,25.52986573,145.61,145.59,6.91463158]
[1742934486255,25.52986573,145.61,145.59,0.04783158]
[1742934486445,0.04986573,145.61,145.59,0.04783158]
[1742934486648,0.04986573,145.61,145.59,6.91463158]
[1742934487950,0.04986573,145.61,145.59,0.04783158]
[1742934488151,6.91606573,145.61,145.59,0.04783158]
[1742934488548,0.04986573,145.61,145.59,0.04783158]
[1742934488752,6.8666,145.6,145.59,0.04783158]
[1742934491457,0.04986573,145.61,145.46,254.71478654]
[1742934491653,25.48,145.6,145.5,25.48]
[1742934492160,6.8677,145.58,145.53,6.8699]
[1742934492556,0.04711118,145.57,145.54,0.02345216]
[1742934492752,6.8685,145.56,145.54,0.02345216]
[1742934492958,0.04711118,145.57,145.54,0.02345216]
[1742934493357,6.8687,145.56,145.54,0.02345216]
[1742934494362,6.8689,145.55,145.54,0.02345216]
[1742934498771,6.8687,145.56,145.54,0.02345216]
[1742934498965,0.04711118,145.57,145.55,6.8689]
[1742934499164,0.04711118,145.57,145.54,0.02345216]
[1742934499565,0.04711118,145.57,145.55,6.8689]
[1742934500178,0.04711118,145.57,145.56,6.8685]
[1742934502077,226.5,145.66,145.59,6.8667]
[1742934502373,25.48,145.65,145.54,25.48]
[1742934503075,6.8661,145.61,145.58,6.8673]
[1742934503276,6.91201692,145.61,145.58,6.91693872]
[1742934503674,0.04591692,145.61,145.58,0.04963872]
[1742934504178,0.04591692,145.61,145.59,6.8667]
[1742934506084,0.04591692,145.61,145.6,6.8666]
[1742934507583,0.04591692,145.61,145.58,0.04963872]
[1742934508187,25.48,145.6,145.53,6.8697]
[1742934508888,6.8683,145.57,145.53,6.8697]
[1742934509090,25.48,145.6,145.52,32.3501]
[1742934509288,25.48,145.6,145.52,6.8701]
[1742934509489,0.04634502,145.57,145.55,0.02092462]
[1742934510290,0.04634502,145.57,145.47,367.31593634]
[1742934510491,25.46,145.56,145.47,9.31593634]
[1742934510796,25.46,145.56,145.5,6.8709]
[1742934510797,6.8697,145.54,145.5,6.8709]
[1742934510990,6.8697,145.54,145.48,25.46]
[1742934511387,0.05077051,145.52,145.5,6.8709]
[1742934512997,0.05077051,145.52,145.47,34.77593634]
[1742934513296,0.05077051,145.52,145.47,9.31593634]
[1742934513600,6.92117051,145.52,145.48,6.8719]
[1742934515299,6.92117051,145.52,145.49,6.8717]
[1742934515898,0.05077051,145.52,145.49,6.8717]
[1742934519599,6.92127051,145.52,145.49,6.8717]
[1742934519996,0.05077051,145.52,145.49,6.8717]
[1742934521303,0.05077051,145.52,145.43,358.0]
[1742934521504,25.46,145.56,145.44,25.46]
[1742934521704,0.05028959,145.49,145.44,25.46]
[1742934522299,0.05028959,145.49,145.46,6.8728]
[1742934522499,0.05028959,145.49,145.44,25.46]
[1742934523603,6.92208959,145.49,145.46,6.873]
[1742934524909,0.05028959,145.49,145.47,6.8727]
[1742934525109,25.46,145.52,145.47,6.8727]
[1742934525298,0.04770539,145.49,145.47,6.8727]
[1742934527912,6.91990539,145.49,145.44,25.46]
[1742934528210,0.04770539,145.49,145.44,25.46]
[1742934528517,0.04770539,145.49,145.44,6.8739]
[1742934529111,0.04770539,145.49,145.45,6.8736]
[1742934529413,25.46,145.52,145.38,23.06903634]
[1742934529614,6.92003813,145.48,145.44,6.8737]
[1742934529814,6.92003813,145.48,145.39,25.46]
[1742934530013,25.46,145.52,145.39,25.46]
[1742934530215,0.04478341,145.45,145.39,25.46]
[1742934530611,0.04478341,145.45,145.4,25.46]
[1742934531013,0.04478341,145.45,145.44,6.8741]
[1742934537026,0.04478341,145.45,145.41,10.28662887]
[1742934537429,0.04478341,145.45,145.43,6.8742]
[1742934537826,35.74662887,145.44,145.34,103.381902]
[1742934538025,10.28662887,145.39,145.37,6.8774]
[1742934538220,10.28662887,145.39,145.34,37.53072288]
[1742934538630,0.05064751,145.38,145.34,37.53072288]
[1742934539228,0.05064751,145.38,145.35,10.28662887]
[1742934539630,0.05064751,145.38,145.37,6.8774]
[1742934549034,10.28662887,145.43,145.37,10.28662887]
[1742934550135,0.04697557,145.41,145.4,6.876]
[1742934552035,10.33360444,145.41,145.4,6.876]
[1742934552528,10.33360444,145.41,145.39,6.92317218]
[1742934552737,10.33360444,145.41,145.39,0.04687218]
[1742934554039,17.20940444,145.41,145.39,0.04687218]
[1742934555942,10.33360444,145.41,145.39,0.04687218]
[1742934556442,10.33360444,145.41,145.39,6.92327218]
[1742934558237,10.33360444,145.41,145.39,0.04687218]
[1742934558442,17.20920444,145.41,145.39,0.04687218]
[1742934560743,6.876,145.4,145.39,0.04687218]
[1742934562647,10.33360444,145.41,145.33,25.46]
[1742934562844,10.28662887,145.38,145.33,25.46]
[1742934563042,10.28662887,145.38,145.37,6.8774]
[1742934563942,10.28662887,145.38,145.33,25.46]
[1742934563943,10.28662887,145.38,145.36,6.8777]
[1742934564443,17.16382887,145.38,145.33,25.46]
[1742934564652,10.28662887,145.36,145.33,25.46]
[1742934564950,10.28662887,145.38,145.33,25.46]
[1742934565145,0.05267388,145.36,145.35,10.28662887]
[1742934565344,10.28662887,145.4,145.35,10.28662887]
[1742934565647,10.28662887,145.4,145.39,6.8765]
[1742934566349,0.05256968,145.41,145.38,0.0478293]
[1742934566550,10.28662887,145.43,145.37,35.74662887]
[1742934566850,0.04582214,145.41,145.38,0.04699706]
[1742934567246,0.04582214,145.41,145.4,6.876]
[1742934577849,0.04582214,145.41,145.39,32.3363]
[1742934578048,10.28662887,145.4,145.39,25.46]
[1742934578350,10.28662887,145.4,145.39,32.3365]
[1742934579549,10.28662887,145.4,145.39,6.8765]
[1742934580156,0.04582214,145.41,145.4,6.876]
[1742934580745,0.04582214,145.41,145.38,0.04699706]
[1742934580955,10.28662887,145.4,145.38,0.04699706]
[1742934581355,0.04582214,145.41,145.38,0.04699706]
[1742934582057,10.28662887,145.4,145.38,0.04699706]
[1742934582456,6.8765,145.39,145.38,0.04699706]
[1742934583351,17.16292887,145.4,145.38,0.04699706]
[1742934583858,17.16292887,145.4,145.38,6.92389706]
[1742934584957,17.16292887,145.4,145.38,0.04699706]
[1742934585858,6.8765,145.39,145.38,0.04699706]
[1742934586060,10.28662887,145.4,145.31,358.41771022]
[1742934586256,10.28662887,145.37,145.33,25.44]
[1742934586463,10.28662887,145.37,145.36,6.8779]
[1742934589259,10.33817102,145.38,145.33,25.44]
[1742934589456,10.28662887,145.36,145.31,10.70433909]
[1742934589657,10.28662887,145.36,145.35,6.8784]
[1742934590565,10.28662887,145.36,145.34,6.8787]
[1742934591960,17.16462887,145.36,145.33,6.8791]
[1742934592557,6.8784,145.35,145.33,6.8791]
[1742934595968,17.16472887,145.36,145.33,6.8791]
[1742934596868,10.28662887,145.34,145.33,6.8791]
[1742934598267,10.28662887,145.36,145.35,6.8784]
[1742934605079,10.28662887,145.36,145.34,6.8786]
[1742934605671,17.16482887,145.36,145.33,6.8791]
[1742934605870,10.28662887,145.34,145.33,6.8791]
[1742934608281,17.16552887,145.34,145.32,6.8796]
[1742934608477,10.28662887,145.34,145.31,0.41771022]
[1742934608777,10.33574928,145.34,145.31,0.41771022]
[1742934608977,10.28662887,145.32,145.31,0.41771022]
[1742934609879,10.33574928,145.34,145.31,0.41771022]
[1742934610478,10.28662887,145.32,145.31,0.41771022]
[1742934610777,0.04912041,145.34,145.31,0.41771022]
[1742934610778,10.33574928,145.34,145.31,0.41771022]
[1742934611280,10.33574928,145.34,145.31,25.85771022]
[1742934611480,10.33574928,145.34,145.33,6.8793]
[1742934612578,10.33574928,145.34,145.31,25.85771022]
[1742934614687,10.33574928,145.34,145.32,6.8795]
[1742934614688,17.21484928,145.34,145.32,6.8795]
[1742934615286,6.8794,145.33,145.31,32.73781022]
[1742934615782,6.8798,145.32,145.31,25.85771022]
[1742934615978,17.16642887,145.32,145.31,25.85771022]
[1742934616283,17.16642887,145.32,145.31,0.41771022]
[1742934617080,10.28662887,145.32,145.31,0.41771022]
[1742934617575,10.33574928,145.34,145.31,0.41771022]
[1742934617780,10.33574928,145.34,145.32,6.8798]
[1742934617979,10.33574928,145.34,145.31,0.41771022]
[1742934618487,17.21484928,145.34,145.32,6.8796]
[1742934620089,10.33574928,145.34,145.33,6.8793]
[1742934620791,0.04912041,145.34,145.33,6.8793]
[1742934621584,10.28662887,145.39,145.33,10.28662887]
[1742934622385,10.28662887,145.39,145.37,6.8772]
[1742934622785,10.33649086,145.39,145.37,0.04564987]
[1742934622981,10.33649086,145.39,145.38,6.877]
[1742934623186,0.04986199,145.39,145.37,0.04564987]
[1742934623385,0.04986199,145.39,145.38,6.877]
[1742934624183,226.98,145.47,145.42,6.8748]
[1742934624388,10.28662887,145.44,145.4,25.42]
[1742934624991,10.28662887,145.42,145.37,10.28662887]
[1742934625187,10.28662887,145.42,145.4,6.876]
[1742934625492,0.05161537,145.41,145.38,0.04434326]
[1742934626490,10.28662887,145.4,145.38,0.04434326]
[1742934627793,6.8765,145.39,145.38,0.04434326]
[1742934628093,0.05161537,145.41,145.38,0.04434326]
[1742934628287,35.70662887,145.4,145.38,0.04434326]
[1742934628695,6.8765,145.39,145.38,0.04434326]
[1742934629492,42.58282887,145.4,145.38,0.04434326]
[1742934629692,35.70662887,145.4,145.38,0.04434326]
[1742934630091,6.8765,145.39,145.38,0.04434326]
[1742934634900,0.05161537,145.41,145.38,0.04434326]
[1742934635501,0.05161537,145.41,145.38,6.92104326]
[1742934636203,0.05161537,145.41,145.39,6.8764]
[1742934636703,10.33824424,145.41,145.39,6.8764]
[1742934638498,10.33824424,145.41,145.38,0.04434326]
[1742934639004,10.33824424,145.41,145.4,6.876]
[1742934639999,226.9,145.53,145.4,10.28662887]
[1742934640204,10.28662887,145.46,145.4,10.28662887]
[1742934640600,10.28662887,145.46,145.43,6.8741]
[1742934640907,17.15992887,145.46,145.43,6.8741]
[1742934641105,10.3350031,145.46,145.45,6.8737]
[1742934641702,10.3350031,145.46,145.44,6.8739]
[1742934642005,10.3350031,145.46,145.43,0.04837539]
[1742934642797,6.8739,145.45,145.43,0.04837539]
[1742934643003,10.28662887,145.44,145.43,0.04837539]
[1742934646810,17.16072887,145.44,145.43,0.04837539]
[1742934648013,10.28662887,145.44,145.34,10.28662887]
[1742934648313,10.28662887,145.4,145.37,6.8772]
[1742934648719,17.16272887,145.4,145.37,6.8772]
[1742934649207,17.21460208,145.4,145.37,6.92739967]
[1742934649408,10.33850208,145.4,145.38,6.8768]
[1742934652716,10.33850208,145.4,145.39,6.8765]
[1742934654117,10.33850208,145.4,145.38,6.8767]
[1742934654615,10.33850208,145.4,145.37,0.05019967]
[1742934654815,10.28662887,145.38,145.37,0.05019967]
[1742934656324,10.28662887,145.38,145.37,6.92759967]
[1742934656916,10.28662887,145.38,145.37,0.05019967]
[1742934658014,10.28662887,145.38,145.37,6.92759967]
[1742934658721,17.16362887,145.38,145.37,0.05019967]
[1742934659520,10.28662887,145.38,145.31,0.41771022]
[1742934659721,10.28662887,145.34,145.31,0.41771022]
[1742934660214,6.8796,145.33,145.31,0.41771022]
[1742934660721,10.28662887,145.32,145.31,0.46604873]
[1742934661115,10.28662887,145.32,145.24,37.53072288]
[1742934661420,10.28662887,145.29,145.24,47.81735175]
[1742934661622,10.28662887,145.27,145.24,44.41412288]
[1742934661818,10.28662887,145.27,145.24,37.53072288]
[1742934662119,10.28662887,145.25,145.24,37.53072288]
[1742934664526,10.28662887,145.25,145.23,6.8839]
[1742934665017,0.04394205,145.27,145.19,41.52090831]
[1742934665226,41.52090831,145.29,145.26,6.8826]
[1742934665716,41.56931494,145.29,145.26,6.8826]
[1742934665923,41.56931494,145.29,145.27,6.8821]
[1742934666124,16.16931494,145.29,145.23,25.4]
[1742934666729,16.16931494,145.29,145.27,6.882]
[1742934667423,16.16931494,145.29,145.23,25.4]
[1742934667622,16.12090831,145.27,145.23,25.4]
[1742934667821,16.12090831,145.25,145.22,6.8842]
[1742934668319,23.05464726,145.25,145.22,6.8842]
[1742934668520,16.17134726,145.25,145.15,374.12090831]
[1742934668722,16.12090831,145.25,145.15,374.12090831]
[1742934668920,0.04855166,145.21,145.16,25.4]
[1742934669119,25.4,145.28,145.17,16.12090831]
[1742934669325,41.52090831,145.28,145.17,16.12090831]
[1742934669525,41.52090831,145.28,145.18,1.26426936]
[1742934670120,48.40310831,145.28,145.24,6.8833]
[1742934670526,0.05006929,145.27,145.24,6.8833]
[1742934670828,16.12090831,145.26,145.22,0.04879835]
[1742934671626,16.12090831,145.24,145.22,0.04879835]
[1742934671818,23.00470831,145.24,145.22,0.04879835]
[1742934673528,41.52090831,145.24,145.14,25.4]
[1742934673724,16.12090831,145.22,145.14,25.4]
[1742934674228,16.12090831,145.22,145.15,25.4]
[1742934674626,0.04462036,145.2,145.15,25.4]
[1742934675023,0.04462036,145.2,145.12,16.12090831]
[1742934675227,0.04462036,145.2,145.13,25.4]
[1742934676128,16.16552867,145.2,145.13,25.4]
[1742934676518,16.16552867,145.2,145.18,6.8862]
[1742934678230,23.05102867,145.2,145.18,6.8862]
[1742934678731,23.05102867,145.2,145.13,25.4]
[1742934678732,23.05102867,145.2,145.17,6.8867]
[1742934679434,16.12090831,145.18,145.08,29.90250831]
[1742934679636,16.12090831,145.18,145.09,25.42]
[1742934679830,0.04870258,145.14,145.09,25.42]
[1742934680026,0.04870258,145.14,145.13,6.8888]
[1742934680233,0.04870258,145.14,145.13,32.3088]
[1742934681134,0.04870258,145.14,145.13,6.8888]
[1742934681335,0.04870258,145.14,145.13,32.3088]
[1742934682138,16.12090831,145.23,145.13,40.47347201]
[1742934682433,16.12090831,145.25,145.16,16.12090831]
[1742934682634,16.12090831,145.25,145.23,6.8837]
[1742934683135,16.16470661,145.25,145.23,6.9274646]
[1742934684334,16.12090831,145.32,145.23,0.0437646]
[1742934684335,16.12090831,145.28,145.23,0.0437646]
[1742934684736,6.8825,145.27,145.24,6.8834]
[1742934685136,16.12090831,145.28,145.23,0.0437646]
[1742934685336,0.04521886,145.26,145.23,0.0437646]
[1742934686138,0.04521886,145.26,145.25,6.8831]
[1742934687035,0.04521886,145.26,145.23,0.0437646]
[1742934687036,0.04521886,145.26,145.24,6.8834]
[1742934687337,0.04521886,145.26,145.23,0.0437646]
[1742934687533,0.04521886,145.26,145.25,6.8831]
[1742934688830,0.04521886,145.26,145.24,6.8835]
[1742934690742,0.04521886,145.26,145.25,6.8831]
[1742934695043,16.12090831,145.31,145.3,6.8807]
[1742934696644,16.12090831,145.31,145.29,0.04818771]
[1742934696832,16.12090831,145.31,145.22,25.4]
[1742934697037,16.12090831,145.29,145.23,25.4]
[1742934697237,16.12090831,145.29,145.24,25.4]
[1742934698036,0.04502149,145.28,145.25,0.04418811]
[1742934698643,0.04502149,145.28,145.27,6.8822]
[1742934705549,0.04502149,145.28,145.25,0.04418811]
[1742934705746,16.12090831,145.26,145.25,0.04418811]
[1742934705947,41.52090831,145.26,145.25,0.04418811]
[1742934706962,48.40350831,145.26,145.25,0.04418811]
[1742934710058,41.52090831,145.26,145.25,0.04418811]
[1742934710263,25.4,145.26,145.25,0.04418811]
[1742934711264,32.2826,145.26,145.25,0.04418811]
[1742934712366,6.8826,145.26,145.25,0.04418811]
[1742934713970,0.04502149,145.28,145.25,0.04418811]
[1742934714369,6.92692149,145.28,145.25,0.04418811]
[1742934714564,0.04502149,145.28,145.25,0.04418811]
[1742934714764,16.1659298,145.28,145.25,0.04418811]
[1742934715066,6.8826,145.26,145.25,0.04418811]
[1742934715472,6.8843,145.23,145.2,6.8851]
[1742934715966,6.8838,145.24,145.21,6.8849]
[1742934716569,6.8842,145.23,145.21,6.8849]
[1742934716770,6.8842,145.23,145.21,6.93141997]
[1742934717467,0.04783432,145.24,145.21,0.04651997]
[1742934717773,16.16874263,145.24,145.21,0.04651997]
[1742934719074,6.8841,145.23,145.21,0.04651997]
[1742934720472,23.00540831,145.22,145.21,0.04651997]
[1742934720679,48.40540831,145.22,145.21,0.04651997]
[1742934723574,41.52090831,145.22,145.21,0.04651997]
[1742934723978,16.12090831,145.22,145.21,0.04651997]
[1742934724283,16.12090831,145.22,145.21,6.93151997]
[1742934726073,16.16874263,145.24,145.21,0.04651997]
[1742934726680,0.04783432,145.24,145.22,6.8845]
[1742934726880,0.04783432,145.24,145.21,0.04651997]
[1742934727279,0.04783432,145.24,145.23,6.8841]
[1742934730185,0.04783432,145.24,145.22,6.8843]
[1742934730682,0.04783432,145.24,145.21,0.04651997]
[1742934730891,0.04783432,145.24,145.23,6.8841]
[1742934731182,10.36778427,145.24,145.23,6.8841]
[1742934731384,10.36778427,145.24,145.22,6.8843]
[1742934731581,10.36778427,145.24,145.21,0.04651997]
[1742934731985,10.36778427,145.24,145.23,6.8841]
[1742934736488,227.12,145.31,145.22,25.38]
[1742934736694,10.31994995,145.28,145.22,25.38]
[1742934737593,10.31994995,145.28,145.27,6.8822]
[1742934743292,10.31994995,145.28,145.24,0.04590066]
[1742934743489,10.31994995,145.25,145.24,0.04590066]
[1742934744893,17.20304995,145.25,145.24,0.04590066]
[1742934745284,10.31994995,145.25,145.17,358.0]
[1742934745484,10.31994995,145.21,145.18,25.38]
[1742934746484,10.37141344,145.21,145.2,6.8851]
[1742934747092,10.37141344,145.21,145.18,0.0495289]
[1742934747287,10.31994995,145.19,145.18,0.0495289]
[1742934749194,17.20594995,145.19,145.18,0.0495289]
[1742934750396,10.31994995,145.19,145.18,0.0495289]
[1742934753999,17.20594995,145.19,145.18,0.0495289]
[1742934754498,10.31994995,145.19,145.18,0.0495289]
[1742934755401,17.20594995,145.19,145.18,0.0495289]